fUST/lending_fUST_20250722
["ID","MTS","AMOUNT","RATE_DAILY","PERIOD"]
[374046974,1753189850208,-460.0,0.00020208,2]
[374046976,1753189850218,-506.0,0.00020208,2]
[374046978,1753189850228,-460.0,0.00020208,2]
[374046980,1753189850238,-404.68,0.00020208,2]
[374046982,1753189850247,-460.0,0.00020208,2]
[374046984,1753189850257,-532.74,0.0002021,2]
[374046986,1753189850269,-4103.12,0.00020212,2]
[374046988,1753189850278,-460.0,0.00020212,2]
[374046990,1753189850287,-460.0,0.00020212,2]
[374046992,1753189850297,-460.0,0.00020212,2]
[374046994,1753189850306,-957.85,0.00020212,2]
[374046996,1753189850317,-680.77,0.00020212,2]
[374046998,1753189850326,-596.77,0.00020212,2]
[374047000,1753189850336,-1145.89393676,0.00020383,3]
[374047002,1753189850348,-620.0,0.00020419,2]
[374047004,1753189850357,-1500.0,0.00020468,2]
[374047006,1753189850368,-1503.5032217,0.00020468,2]
[374047008,1753189850377,-596.02,0.0002048,2]
[374047010,1753189850388,-1102.72,0.00020481,2]
[374047012,1753189850397,-718.71,0.00020481,2]
[374047014,1753189850407,-498.39,0.00020481,2]
[374047017,1753189850417,-282.63378705,0.00020481,2]
[374047018,1753189850427,-460.0,0.00020481,2]
[374047020,1753189850437,-616.72,0.00020481,2]
[374047022,1753189850447,-460.0,0.00020481,2]
[374047024,1753189850456,-460.0,0.00020482,2]
[374047026,1753189850466,-887.83,0.00020482,2]
[374047028,1753189850476,-460.0,0.00020482,2]
[374047030,1753189850486,-460.0,0.00020482,2]
[374047032,1753189850496,-460.0,0.00020482,2]
[374047034,1753189850505,-460.0,0.00020482,2]
[374047037,1753189850515,-506.0,0.00020482,2]
[374047038,1753189850525,-460.0,0.00020482,2]
[374047041,1753189850545,-460.0,0.00020482,2]
[374047042,1753189850555,-532.74,0.00020484,2]
[374047044,1753189850565,-2339.72120448,0.00020486,2]
[374047053,1753189850652,-1415.5314616,0.00020486,2]
[374047070,1753189850809,-460.0,0.00016918,2]
[374047072,1753189850819,-460.0,0.00016918,2]
[374047074,1753189850828,-460.0,0.00016919,2]
[374047076,1753189850838,-460.0,0.00016919,2]
[374047078,1753189850847,-460.0,0.0001692,2]
[374047080,1753189850856,-460.0,0.00016922,2]
[374047082,1753189850866,-460.0,0.00017192,2]
[374047084,1753189850876,-460.0,0.00017192,2]
[374047086,1753189850885,-460.0,0.00017193,2]
[374047088,1753189850895,-464.31809175,0.00017466,2]
[374047090,1753189850904,-460.0,0.00017466,2]
[374047092,1753189850913,-460.0,0.00017467,2]
[374047094,1753189850922,-347.86733392,0.00020486,2]
[374047096,1753189850932,-460.0,0.00020486,2]
[374047099,1753189850941,-460.0,0.00020486,2]
[374047101,1753189850951,-460.0,0.00020486,2]
[374047103,1753189850960,-957.85,0.00020486,2]
[374047105,1753189850969,-680.77,0.00020486,2]
[374047107,1753189850978,-596.77,0.00020486,2]
[374047109,1753189850988,-1145.89393676,0.00020659,3]
[374047111,1753189850997,-1000.0,0.00020681,2]
[374047113,1753189851006,-500.0,0.00020706,2]
[374047115,1753189851015,-1000.0,0.00020706,2]
[374047117,1753189851025,-1000.0,0.00020706,2]
[374047119,1753189851035,-535.983,0.00020735,2]
[374047121,1753189851045,-596.02,0.00020754,2]
[374047123,1753189851054,-1102.72,0.00020755,2]
[374047125,1753189851063,-498.39,0.00020755,2]
[374047127,1753189851072,-460.0,0.00020755,2]
[374047129,1753189851082,-616.72,0.00020755,2]
[374047131,1753189851091,-460.0,0.00020755,2]
[374047132,1753189851101,-1048.56607355,0.00020756,2]
[374047134,1753189851111,-460.0,0.00020756,2]
[374047136,1753189851120,-887.83,0.00020756,2]
[374047137,1753189851130,-460.0,0.00020756,2]
[374047139,1753189851140,-460.0,0.00020756,2]
[374047141,1753189851149,-460.0,0.00020756,2]
[374047144,1753189851158,-460.0,0.00020756,2]
[374047146,1753189851168,-506.0,0.00020756,2]
[374047147,1753189851177,-166.21,0.00020756,2]
[374047150,1753189851187,-460.0,0.00020756,2]
[374047152,1753189851197,-532.74,0.00020758,2]
[374047154,1753189851206,-4103.12,0.0002076,2]
[374047156,1753189851216,-460.0,0.0002076,2]
[374047158,1753189851225,-460.0,0.0002076,2]
[374047160,1753189851234,-460.0,0.0002076,2]
[374047162,1753189851244,-957.85,0.0002076,2]
[374047164,1753189851254,-680.77,0.0002076,2]
[374047166,1753189851263,-596.77,0.0002076,2]
[374047168,1753189851272,-5000.0,0.00020826,2]
[374047170,1753189851282,-1145.89393676,0.00020934,4]
[374047172,1753189851291,-826.61144964,0.00020998,2]
[374047174,1753189851301,-3000.0,0.00021,2]
[374047176,1753189851310,-3000.0,0.0002101,2]
[374047178,1753189851321,-3000.0,0.0002102,2]
[374047180,1753189851331,-596.02,0.00021028,2]
[374047181,1753189851340,-1102.72,0.00021029,2]
[374047183,1753189851354,-498.39,0.00021029,2]
[374047185,1753189851364,-17.17177132,0.00021029,2]
[374047188,1753189851381,-442.82822868,0.00021029,2]
[374047190,1753189851390,-616.72,0.00021029,2]
[374047192,1753189851401,-460.0,0.00021029,2]
[374047194,1753189851411,-3000.0,0.0002103,2]
[374047196,1753189851422,-240.32,0.0002103,2]
[374047198,1753189851433,-887.83,0.0002103,2]
[374047200,1753189851442,-460.0,0.0002103,2]
[374047202,1753189851456,-460.0,0.0002103,2]
[374047204,1753189851467,-460.0,0.0002103,2]
[374047206,1753189851476,-460.0,0.0002103,2]
[374047208,1753189851486,-506.0,0.0002103,2]
[374047210,1753189851496,-460.0,0.0002103,2]
[374047211,1753189851505,-532.74,0.00021032,2]
[374047213,1753189851516,-2351.37824526,0.00021034,2]
[374047221,1753189851584,-460.0,0.00016919,2]
[374047222,1753189851593,-324.01,0.00017732,3]
[374047224,1753189851603,-460.0,0.0001774,2]
[374047226,1753189851613,-460.0,0.00018014,2]
[374047228,1753189851623,-460.0,0.00018288,2]
[374047238,1753189851633,-586.09807439,0.00018562,2]
[374047240,1753189851729,-1751.74175474,0.00021034,2]
[374047242,1753189851739,-460.0,0.00021034,2]
[374047244,1753189851748,-460.0,0.00021034,2]
[374047246,1753189851758,-78.12318787,0.00021034,2]
[374047250,1753189851782,-879.72681213,0.00021034,2]
[374047252,1753189851792,-680.77,0.00021034,2]
[374047254,1753189851801,-596.77,0.00021034,2]
[374047256,1753189851811,-3000.0,0.0002104,2]
[374047258,1753189851821,-3000.0,0.0002105,2]
[374047260,1753189851830,-3000.0,0.0002106,2]
[374047261,1753189851840,-3000.0,0.0002107,2]
[374047263,1753189851850,-3000.0,0.0002108,2]
[374047265,1753189851859,-3000.0,0.0002109,2]
[374047267,1753189851869,-3000.0,0.000211,2]
[374047269,1753189851878,-3000.0,0.0002111,2]
[374047271,1753189851888,-1633.08593717,0.0002112,2]
[374051346,1753189928577,4731.8160998,0.00016297,2]
[374051347,1753189930265,-202.39091256,0.00016814,2]
[374051348,1753189932899,-300.0,0.00016917,2]
[374051349,1753189932921,-58.65800598,0.00016918,2]
[374051350,1753189934061,235.961928,0.00016462,2]
[374051351,1753189936185,-160.05037009,0.00016918,2]
[374051352,1753189937771,-241.29162393,0.00016918,2]
[374051353,1753189937795,-107.49698828,0.00016918,2]
[374051354,1753189939463,-129.91874923,0.00016918,2]
[374051355,1753189939487,-141.36364531,0.00016918,2]
[374051356,1753189941011,-223.08593214,0.00016918,2]
[374051357,1753189945723,-95.55042255,0.00016918,2]
[374051358,1753189945747,-149.0528717,0.00016918,2]
[374051359,1753189948493,-190.73656462,0.00016918,2]
[374051360,1753189950630,-120.21056368,0.00016918,2]
[374051361,1753189950654,-210.15327524,0.00016918,2]
[374051362,1753189955018,-198.81543304,0.00016918,2]
[374051363,1753189958737,-51.03129172,0.00016918,2]
[374051364,1753189958765,-193.1966068,0.00016918,2]
[374051365,1753189960858,-242.13978212,0.00016918,2]
[374051366,1753189964770,-63.80361108,0.00016918,2]
[374051367,1753189964793,-112.28594782,0.00016918,2]
[374051368,1753189966409,-207.97523436,0.00016918,2]
[374051369,1753189969577,-139.73881782,0.00016918,2]
[374051370,1753189969601,-43.51098295,0.00016918,2]
[374051371,1753189971949,-229.02887391,0.00016918,2]
[374051372,1753189975243,-187.46014314,0.00016918,2]
[374051373,1753189975267,-41.6951257,0.00016918,2]
[374051374,1753189976839,-367.73940454,0.00016918,2]
[374051375,1753189980637,-50.56546976,0.00016918,2]
[374051376,1753189980661,-219.14970782,0.00016918,2]
[374051377,1753189986053,-178.7529694,0.00016917,2]
[374051378,1753189989442,-121.2470306,0.00016917,2]
[374051379,1753189989469,-213.39245825,0.00016918,2]
[374051380,1753189992107,-27.45783393,0.00016918,2]
[374051381,1753189992130,-194.60616718,0.00016918,2]
[374051382,1753189993838,-184.69572399,0.00016918,2]
[374051383,1753189997426,-80.69810883,0.00016918,2]
[374051384,1753189997453,-219.30189117,0.00016918,2]
[374051385,1753190002669,-240.69810883,0.00016918,2]
[374051386,1753190002693,-55.46993506,0.00016918,2]
[374051387,1753190004222,-189.42801346,0.00016918,2]
[374051388,1753190006441,-215.10205148,0.00016918,2]
[374051389,1753190006465,-113.46369741,0.00016918,2]
[374051390,1753190008896,-281.67011792,0.00016918,2]
[374051391,1753190010388,-194.35291794,0.00016918,2]
[374051392,1753190011959,-60.99326673,0.00016918,2]
[374051393,1753190011982,-111.30767397,0.00016918,2]
[374051394,1753190018279,-277.06946057,0.00016918,2]
[374051395,1753190020332,-71.62286546,0.00016918,2]
[374051396,1753190020356,-194.45581047,0.00016918,2]
[374051397,1753190022369,-173.15308942,0.00016918,2]
[374051398,1753190023942,-92.39110011,0.00016918,2]
[374051399,1753190023965,-63.1644022,0.00016918,2]
[374051400,1753190027872,-275.72068391,0.00016918,2]
[374051401,1753190031123,-121.11491389,0.00016918,2]
[374051402,1753190031146,-283.19806077,0.00016918,2]
[374051403,1753190033330,-176.80193923,0.00016918,2]
[374051404,1753190033352,-43.17862323,0.00016918,2]
[374051405,1753190035596,-290.87262399,0.00016918,2]
[374051406,1753190037253,-125.94875278,0.00016918,2]
[374051407,1753190037277,-118.28375864,0.00016918,2]
[374051408,1753190039795,-200.66287179,0.00016918,2]
[374051409,1753190041343,-141.05336957,0.00016918,2]
[374051410,1753190041367,-123.67422357,0.00016918,2]
[374051411,1753190042904,-154.88530744,0.00016918,2]
[374051412,1753190047788,-162.63270375,0.00016918,2]
[374051413,1753190049230,-18.80776524,0.00016918,2]
[374051414,1753190049254,-282.20935793,0.00016918,2]
[374051415,1753190051393,-151.98935022,0.00016918,2]
[374051416,1753190053957,-25.80129185,0.00016918,2]
[374051417,1753190053980,-203.0059341,0.00016918,2]
[374051418,1753190056885,770.52448458,0.0001677,2]
[374051419,1753190058555,-83.9940659,0.00016918,2]
[374051420,1753190058579,-86.12219888,0.00016918,2]
[374051421,1753190061842,-157.65125675,0.00016918,2]
[374051422,1753190063919,-216.22654437,0.00016918,2]
[374051423,1753190063944,-2.97179746,0.00016918,2]
[374051424,1753190073231,270.04199633,0.0001677,2]
[374051425,1753190073254,505.73109298,0.0001677,2]
[374051426,1753190170199,1543.0,0.000252,120]
[374051427,1753190229559,189.15625638,0.00016412,2]
[374051428,1753190357046,-715.27,0.00016917,2]
[374051429,1753190357068,-460.0,0.00016917,2]
[374051430,1753190357089,-460.0,0.00016918,2]
[374051431,1753190357111,-460.0,0.00016918,2]
[374051432,1753190357132,-460.0,0.00016918,2]
[374051433,1753190357153,-460.0,0.00016918,2]
[374051434,1753190357175,-463.08,0.00016918,2]
[374051435,1753190357197,-460.0,0.00016918,2]
[374051436,1753190357219,-460.0,0.00016918,2]
[374051437,1753190357240,-460.0,0.00016918,2]
[374051438,1753190357260,-151.54598844,0.00016918,2]
[374051439,1753190357280,-460.0,0.00016918,2]
[374051440,1753190357306,-460.0,0.00016918,2]
[374051441,1753190357327,-460.0,0.00016918,2]
[374051442,1753190357349,-460.0,0.00016918,2]
[374051443,1753190357370,-460.0,0.00016919,2]
[374051444,1753190357393,-460.0,0.00016919,2]
[374051445,1753190357414,-462.35587766,0.00016919,2]
[374051446,1753190357436,-401.90180984,0.00016919,2]
[374051447,1753190357459,-460.0,0.00016919,2]
[374051448,1753190357484,-463.34187825,0.00016919,2]
[374051449,1753190357505,-460.0,0.00016919,2]
[374051450,1753190357526,-460.0,0.00016919,2]
[374051451,1753190357551,-460.0,0.00016919,2]
[374051452,1753190357573,-514.80754,0.00016919,2]
[374051453,1753190357593,-462.9715992,0.00016919,2]
[374051454,1753190357614,-460.0,0.00016919,2]
[374051455,1753190357635,-460.0,0.00016919,2]
[374051456,1753190357655,-400.0,0.00016919,2]
[374051457,1753190357677,-460.0,0.00016919,2]
[374051458,1753190357698,-464.82552371,0.00016919,2]
[374051459,1753190357720,-460.0,0.00016919,2]
[374051460,1753190357741,-460.0,0.00016919,2]
[374051461,1753190357761,-460.0,0.00016919,2]
[374051462,1753190357782,-291.96268977,0.00016919,2]
[374051463,1753190357806,-460.0,0.00016919,2]
[374051464,1753190357828,-460.0,0.00016919,2]
[374051465,1753190357850,-460.0,0.00016919,2]
[374051466,1753190357872,-460.0,0.00016919,2]
[374051467,1753190357895,-460.0,0.00016919,2]
[374051468,1753190357918,-460.0,0.00016919,2]
[374051469,1753190357939,-460.0,0.00016919,2]
[374051470,1753190357960,-466.15586867,0.00016919,2]
[374051471,1753190357982,-460.0,0.00016919,2]
[374051472,1753190358003,-460.0,0.00016919,2]
[374051473,1753190358024,-460.0,0.00016919,2]
[374051474,1753190358049,-460.0,0.00016919,2]
[374051475,1753190358070,-460.0,0.00016919,2]
[374051476,1753190358093,-460.0,0.00016919,2]
[374051477,1753190358115,-460.0,0.00016919,2]
[374051478,1753190358136,-460.0,0.00016919,2]
[374051479,1753190358159,-460.0,0.00016919,2]
[374051480,1753190358179,-270.29271276,0.0001692,2]
[374051481,1753190358200,-460.0,0.0001692,2]
[374051482,1753190358221,-460.0,0.0001692,2]
[374051483,1753190358243,-559.66935542,0.0001692,2]
[374051484,1753190358264,-460.0,0.0001692,2]
[374051485,1753190358285,-460.0,0.0001692,2]
[374051486,1753190358312,-460.0,0.0001692,2]
[374051487,1753190358332,-289.27977602,0.0001692,2]
[374051488,1753190358352,-460.0,0.0001692,2]
[374051489,1753190358372,-460.0,0.0001692,2]
[374051490,1753190358393,-460.0,0.0001692,2]
[374051491,1753190358413,-460.0,0.0001692,2]
[374051492,1753190358434,-461.02718599,0.0001692,2]
[374051493,1753190358460,-462.28272938,0.0001692,2]
[374051494,1753190358484,-39.22946489,0.0001692,2]
[374051495,1753190372578,4948.26433407,0.0001677,2]
[374051496,1753190452177,876.763217,0.00016067,2]
[374051497,1753190453664,3103.100315,0.00016067,2]
[374051498,1753190531863,160.326794,0.00013699,2]
[374051505,1753190714529,5455.0045158,0.0001607,2]
[374051506,1753190729683,2181.9005249,0.00016153,2]
[374051570,1753191032441,-737.359155,0.00016917,2]
[374051629,1753191038438,-271.640845,0.00016917,2]
[374051631,1753191038448,-1200.0,0.00016917,2]
[374051633,1753191038458,-300.0,0.00016917,2]
[374051635,1753191038467,-392.5914906,0.00016918,2]
[374052185,1753191043462,-67.4085094,0.00016918,2]
[374052187,1753191043472,-460.0,0.00016918,2]
[374052189,1753191043482,-460.0,0.00016918,2]
[374052191,1753191043491,-447.3990306,0.00016918,2]
[374052206,1753191043632,-12.6009694,0.00016918,2]
[374052208,1753191043642,-460.0,0.00016918,2]
[374052210,1753191043652,-460.0,0.00016918,2]
[374052212,1753191043661,-460.0,0.00016918,2]
[374052214,1753191043672,-460.0,0.00016918,2]
[374052216,1753191043682,-460.0,0.00016918,2]
[374052218,1753191043691,-460.0,0.00016918,2]
[374052220,1753191043706,-460.0,0.00016918,2]
[374052222,1753191043715,-460.0,0.00016918,2]
[374052224,1753191043726,-460.0,0.00016918,2]
[374052225,1753191043736,-460.0,0.00016918,2]
[374052227,1753191043746,-460.0,0.00016918,2]
[374052229,1753191043756,-460.0,0.00016918,2]
[374052231,1753191043766,-462.21027629,0.00016918,2]
[374052233,1753191043777,-357.77021773,0.00016918,2]
[374052235,1753191043788,-460.0,0.00016918,2]
[374052237,1753191043797,-460.0,0.00016918,2]
[374052239,1753191043807,-460.0,0.00016918,2]
[374052241,1753191043816,-460.0,0.00016918,2]
[374052243,1753191043825,-460.0,0.00016918,2]
[374052245,1753191043835,-460.0,0.00016918,2]
[374052247,1753191043844,-460.0,0.00016918,2]
[374052249,1753191043854,-460.0,0.00016918,2]
[374052251,1753191043863,-4008.37,0.00016918,2]
[374052253,1753191043873,-460.0,0.00016918,2]
[374052255,1753191043884,-460.0,0.00016918,2]
[374052257,1753191043894,-460.0,0.00016918,2]
[374052259,1753191043904,-519.86,0.00016918,2]
[374052261,1753191043914,-460.0,0.00016918,2]
[374052263,1753191043924,-460.0,0.00016918,2]
[374052265,1753191043934,-915.2,0.00016918,2]
[374052266,1753191043945,-460.0,0.00016919,2]
[374052268,1753191043954,-460.0,0.00016919,2]
[374052270,1753191043964,-460.0,0.00016919,2]
[374052272,1753191043974,-460.0,0.00016919,2]
[374052274,1753191043983,-605.94981198,0.00016919,2]
[374052276,1753191043994,-460.0,0.00016919,2]
[374052278,1753191044004,-460.0,0.00016919,2]
[374052280,1753191044014,-460.0,0.00016919,2]
[374052282,1753191044023,-205.89505864,0.00016919,2]
[374052285,1753191044035,-258.02921341,0.00016919,2]
[374052287,1753191044045,-460.0,0.00016919,2]
[374052289,1753191044054,-460.0,0.00016919,2]
[374052291,1753191044064,-460.0,0.00016919,2]
[374052292,1753191044073,-574.09510972,0.00016919,2]
[374052294,1753191044083,-469.1428676,0.00016919,2]
[374052296,1753191044092,-460.0,0.00016919,2]
[374052298,1753191044102,-462.27844942,0.00016919,2]
[374052300,1753191044112,-331.82757342,0.00016919,2]
[374052302,1753191044121,-460.0,0.00016919,2]
[374052304,1753191044133,-460.0,0.00016919,2]
[374052306,1753191044142,-460.0,0.00016919,2]
[374052308,1753191044152,-554.76,0.00016919,2]
[374052310,1753191044161,-261.78,0.00016919,2]
[374052312,1753191044171,-460.0,0.00016919,2]
[374052314,1753191044181,-460.0,0.00016919,2]
[374052316,1753191044190,-460.0,0.00016919,2]
[374052318,1753191044199,-460.0,0.00016919,2]
[374052320,1753191044208,-460.0,0.00016919,2]
[374052322,1753191044218,-377.85293025,0.00016919,2]
[374052534,1753191046524,-460.0,0.00016918,2]
[374052536,1753191046535,-82.14706975,0.00016919,2]
[374052538,1753191046544,-460.0,0.00016919,2]
[374052540,1753191046553,-460.0,0.00016919,2]
[374052542,1753191046562,-460.0,0.00016919,2]
[374052544,1753191046572,-460.0,0.00016919,2]
[374052546,1753191046581,-460.0,0.00016919,2]
[374052548,1753191046590,-460.0,0.00016919,2]
[374052549,1753191046599,-460.0,0.00016919,2]
[374052551,1753191046608,-460.0,0.00016919,2]
[374052553,1753191046617,-460.0,0.00016919,2]
[374052555,1753191046627,-460.0,0.00016919,2]
[374052557,1753191046640,-460.0,0.00016919,2]
[374052559,1753191046649,-460.0,0.00016919,2]
[374052561,1753191046659,-46.41340335,0.00016919,2]
[374052620,1753191047222,-413.58659665,0.00016919,2]
[374052622,1753191047232,-460.0,0.00016919,2]
[374052624,1753191047241,-460.0,0.00016919,2]
[374052626,1753191047251,-460.0,0.00016919,2]
[374052628,1753191047260,-460.0,0.00016919,2]
[374052630,1753191047270,-426.4392242,0.00016919,2]
[374052632,1753191047280,-185.358808,0.00016919,2]
[374057656,1753191099912,2579.75294987,0.00016153,2]
[374057657,1753191099937,20000.0,0.00016153,2]
[374057658,1753191099958,2320.24705013,0.00016153,2]
[374059050,1753191320029,17679.75294987,0.00016131,2]
[374059051,1753191320051,5583.24705013,0.00016131,2]
[374059054,1753191645632,571.712945,0.00016066,2]
[374059056,1753191883200,6218.32,0.0001677,2]
[374059058,1753191999254,157.908199,0.00013699,2]
[374059059,1753192114849,7468.81180587,0.00016027,2]
[374059060,1753192114872,10000.0,0.00016027,2]
[374059061,1753192114895,7431.18819413,0.00016027,2]
[374059378,1753192238682,-300.0,0.00016915,2]
[374059380,1753192238693,-300.0,0.00016915,2]
[374059383,1753192238702,-300.0,0.00016915,2]
[374059386,1753192238712,-300.0,0.00016915,2]
[374059388,1753192238721,-1200.0,0.00016915,2]
[374059391,1753192238731,-460.0,0.00016916,2]
[374059394,1753192238740,-460.0,0.00016916,2]
[374059396,1753192238749,-460.0,0.00016916,2]
[374059398,1753192238759,-460.0,0.00016916,2]
[374059400,1753192238769,-460.0,0.00016916,2]
[374059402,1753192238778,-450.98427052,0.00016916,2]
[374059403,1753192238788,-388.63557169,0.00016916,2]
[374059404,1753192238798,-460.0,0.00016916,2]
[374059405,1753192238809,-4764.45171987,0.00016917,2]
[374059406,1753192238818,-562.72162882,0.00016917,2]
[374059407,1753192238827,-460.0,0.00016917,2]
[374059408,1753192238837,-460.0,0.00016917,2]
[374059409,1753192238846,-460.0,0.00016917,2]
[374059410,1753192238856,-460.0,0.00016917,2]
[374059411,1753192238866,-460.0,0.00016917,2]
[374059412,1753192238876,-460.0,0.00016917,2]
[374059413,1753192238886,-460.0,0.00016917,2]
[374059414,1753192238895,-468.02,0.00016917,2]
[374059415,1753192238904,-460.0,0.00016917,2]
[374059416,1753192238914,-460.0,0.00016917,2]
[374059417,1753192238924,-340.78040052,0.00016917,2]
[374059418,1753192238933,-460.0,0.00016917,2]
[374059419,1753192238943,-1014.91,0.00016917,2]
[374059420,1753192238952,-460.0,0.00016917,2]
[374059421,1753192238961,-460.0,0.00016917,2]
[374059422,1753192238971,-254.38,0.00016917,2]
[374059424,1753192238981,-460.0,0.00016917,2]
[374059426,1753192238990,-237.4209502,0.00016917,2]
[374059428,1753192238999,-460.0,0.00016917,2]
[374059430,1753192239009,-460.0,0.00016917,2]
[374059432,1753192239019,-460.0,0.00016917,2]
[374059434,1753192239031,-155.01208625,0.00016917,2]
[374059436,1753192239041,-460.0,0.00016917,2]
[374059438,1753192239050,-460.0,0.00016917,2]
[374059440,1753192239060,-460.0,0.00016917,2]
[374059442,1753192239069,-460.0,0.00016917,2]
[374059444,1753192239080,-617.99,0.00016917,2]
[374059446,1753192239090,-512.7,0.00016917,2]
[374059448,1753192239099,-460.0,0.00016917,2]
[374059450,1753192239113,-460.0,0.00016917,2]
[374059452,1753192239122,-460.0,0.00016917,2]
[374059454,1753192239132,-460.0,0.00016917,2]
[374059456,1753192239141,-460.0,0.00016917,2]
[374059458,1753192239150,-460.0,0.00016917,2]
[374059460,1753192239160,-460.0,0.00016917,2]
[374059462,1753192239170,-460.0,0.00016917,2]
[374059464,1753192239180,-460.0,0.00016917,2]
[374059466,1753192239190,-460.0,0.00016917,2]
[374059468,1753192239212,-460.0,0.00016917,2]
[374059470,1753192239225,-460.0,0.00016917,2]
[374059472,1753192239234,-460.0,0.00016917,2]
[374059474,1753192239244,-460.0,0.00016917,2]
[374059476,1753192239253,-716.61,0.00016917,2]
[374059478,1753192239262,-460.0,0.00016917,2]
[374059480,1753192239272,-460.0,0.00016917,2]
[374059482,1753192239282,-460.0,0.00016917,2]
[374059484,1753192239291,-388.33954498,0.00016917,2]
[374059486,1753192239302,-416.5153413,0.00016917,2]
[374059488,1753192239312,-460.0,0.00016917,2]
[374059490,1753192239322,-460.0,0.00016917,2]
[374059492,1753192239331,-460.0,0.00016917,2]
[374059494,1753192239340,-460.0,0.00016917,2]
[374059496,1753192239349,-460.0,0.00016917,2]
[374059498,1753192239359,-460.0,0.00016917,2]
[374059500,1753192239370,-460.0,0.00016917,2]
[374059502,1753192239379,-460.0,0.00016917,2]
[374059504,1753192239388,-460.0,0.00016917,2]
[374059506,1753192239398,-460.0,0.00016917,2]
[374059509,1753192239407,-460.0,0.00016917,2]
[374059510,1753192239416,-460.0,0.00016917,2]
[374059512,1753192239426,-460.0,0.00016917,2]
[374059514,1753192239435,-460.0,0.00016917,2]
[374059516,1753192239444,-434.11310912,0.00016917,2]
[374059517,1753192239454,-460.0,0.00016917,2]
[374059518,1753192239463,-590.18340738,0.00016917,2]
[374059519,1753192239472,-460.0,0.00016918,2]
[374059520,1753192239482,-460.0,0.00016918,2]
[374059521,1753192239491,-460.0,0.00016918,2]
[374059522,1753192239501,-460.0,0.00016918,2]
[374059523,1753192239510,-460.0,0.00016918,2]
[374059524,1753192239519,-460.0,0.00016918,2]
[374059525,1753192239529,-464.07660959,0.00016918,2]
[374059526,1753192239538,-460.0,0.00016918,2]
[374059527,1753192239548,-460.0,0.00016918,2]
[374059528,1753192239558,-460.0,0.00016918,2]
[374059529,1753192239567,-460.0,0.00016918,2]
[374059530,1753192239577,-460.0,0.00016918,2]
[374059531,1753192239586,-460.0,0.00016918,2]
[374059532,1753192239596,-460.0,0.00016918,2]
[374059533,1753192239606,-460.0,0.00016918,2]
[374059534,1753192239615,-262.99,0.00016918,2]
[374059535,1753192239624,-460.0,0.00016918,2]
[374059536,1753192239633,-460.0,0.00016918,2]
[374059537,1753192239643,-460.0,0.00016918,2]
[374059538,1753192239652,-460.0,0.00016918,2]
[374059539,1753192239662,-460.0,0.00016918,2]
[374059540,1753192239671,-460.0,0.00016918,2]
[374059541,1753192239680,-460.0,0.00016918,2]
[374059542,1753192239690,-460.0,0.00016918,2]
[374059543,1753192239699,-460.0,0.00016918,2]
[374059544,1753192239709,-460.0,0.00016918,2]
[374059545,1753192239718,-460.0,0.00016918,2]
[374059546,1753192239727,-460.0,0.00016918,2]
[374059547,1753192239736,-460.0,0.00016918,2]
[374059548,1753192239746,-460.0,0.00016918,2]
[374059549,1753192239755,-460.0,0.00016918,2]